bitfinex/quotes_BTCUSD_20240729
["timestamp","ask_amount","ask_price","bid_price","bid_amount"]
[1722219019176,0.05965377,68811.0,68810.0,0.66470765]
[1722219019632,0.0368341,68811.0,68810.0,0.66470765]
[1722219019814,0.03692767,68811.0,68810.0,0.08339765]
[1722219020240,0.03692767,68811.0,68810.0,0.66574415]
[1722219020543,0.03692767,68811.0,68810.0,0.66470765]
[1722219020960,0.13078519,68812.0,68811.0,0.5813]
[1722219021098,0.16746086,68812.0,68811.0,0.6641]
[1722219021304,0.16746086,68812.0,68811.0,0.67019678]
[1722219021711,0.03667567,68812.0,68811.0,0.67019678]
[1722219022751,0.05949543,68812.0,68811.0,0.67019678]
[1722219023549,0.07276541,68812.0,68811.0,0.00609678]
[1722219023746,0.07276541,68812.0,68811.0,0.20515678]
[1722219023747,0.04990998,68812.0,68811.0,0.20515678]
[1722219024211,0.12001044,68812.0,68811.0,0.20515678]
[1722219025045,0.12001044,68812.0,68811.0,0.08889678]
[1722219026175,0.23626844,68812.0,68811.0,0.08889678]
[1722219026368,0.52594213,68812.0,68811.0,0.00609678]
[1722219026518,0.52594213,68812.0,68810.0,0.000924]
[1722219026519,0.19272998,68811.0,68810.0,0.000924]
[1722219026706,0.29947044,68811.0,68810.0,0.000924]
[1722219026910,0.22936998,68811.0,68810.0,0.00646741]
[1722219027139,0.29943742,68811.0,68810.0,0.000924]
[1722219027372,0.30143742,68811.0,68810.0,0.00646741]
[1722219027538,0.68118284,68811.0,68810.0,0.000924]
[1722219027742,0.44866284,68811.0,68810.0,0.00646741]
[1722219027950,0.44866284,68811.0,68810.0,0.000924]
[1722219028175,0.44866284,68811.0,68810.0,0.00646741]
[1722219028595,0.30143742,68811.0,68810.0,0.000924]
[1722219028832,0.4486817,68811.0,68810.0,0.000924]
[1722219029712,0.4486817,68811.0,68810.0,0.00702175]
[1722219030396,0.44731326,68811.0,68810.0,0.00702175]
[1722219030805,0.34200208,68811.0,68810.0,0.00702175]
[1722219030998,0.47014521,68811.0,68810.0,0.00702175]
[1722219031752,0.32287311,68811.0,68810.0,0.00702175]
[1722219032204,0.30005256,68811.0,68810.0,0.00702175]
[1722219032430,0.4473401,68811.0,68810.0,0.00702175]
[1722219032797,0.3310801,68811.0,68810.0,0.00702175]
[1722219032981,0.11438336,68811.0,68810.0,0.00702175]
[1722219033308,0.07846998,68811.0,68810.0,0.00702175]
[1722219033508,0.18352225,68811.0,68810.0,0.00702175]
[1722219034677,0.33084116,68811.0,68810.0,0.00702175]
[1722219035057,0.29978225,68811.0,68810.0,0.00702175]
[1722219035468,0.32260292,68811.0,68810.0,0.00702175]
[1722219035661,0.20634292,68811.0,68810.0,0.00702175]
[1722219035870,0.35366478,68811.0,68810.0,0.00702175]
[1722219036250,0.33084411,68811.0,68810.0,0.00702175]
[1722219036618,0.18352225,68811.0,68810.0,0.00702175]
[1722219037380,0.10505227,68811.0,68810.0,0.00781509]
[1722219037585,0.10605227,68811.0,68810.0,0.35660109]
[1722219037812,0.10605227,68811.0,68810.0,0.58833175]
[1722219039407,0.1288726,68811.0,68810.0,0.58833175]
[1722219039610,0.1288726,68811.0,68810.0,0.35580775]
[1722219039611,0.1278726,68811.0,68810.0,0.35580775]
[1722219039821,0.14833188,68812.0,68810.0,0.23954575]
[1722219040181,0.16060125,68812.0,68811.0,0.43158]
[1722219040331,0.01326998,68812.0,68811.0,0.43158]
[1722219040540,0.19627696,68812.0,68811.0,0.43854734]
[1722219040708,0.26545659,68812.0,68811.0,0.43854734]
[1722219041380,0.25318661,68812.0,68811.0,0.43854734]
[1722219041597,0.10585352,68812.0,68811.0,0.43854734]
[1722219041839,0.1181235,68812.0,68811.0,0.20602734]
[1722219042038,0.26547068,68812.0,68811.0,0.43940907]
[1722219042265,0.1201282,68812.0,68811.0,0.43854734]
[1722219043143,0.14284548,68812.0,68811.0,0.20602734]
[1722219043418,0.12002524,68812.0,68811.0,0.08976734]
[1722219043608,0.12002524,68812.0,68811.0,0.20602734]
[1722219043828,0.12002524,68812.0,68811.0,0.20710773]
[1722219044050,0.12002524,68812.0,68811.0,0.20602734]
[1722219044272,0.12002524,68812.0,68811.0,0.20720169]
[1722219044501,0.12002524,68812.0,68811.0,0.20602734]
[1722219046268,0.01526998,68812.0,68811.0,0.20602734]
[1722219046486,0.14225518,68812.0,68811.0,0.20602734]
[1722219047400,0.11943487,68812.0,68811.0,0.20602734]
[1722219047839,0.0363212,68812.0,68811.0,0.43854734]
[1722219048092,0.0363212,68812.0,68811.0,0.75016734]
[1722219048296,0.0363212,68812.0,68811.0,0.51764734]
[1722219048715,0.0353212,68812.0,68811.0,0.51764734]
[1722219049564,0.02649143,68814.0,68813.0,0.116257]
[1722219049806,0.02849143,68814.0,68813.0,0.12402393]
[1722219050244,0.02849143,68814.0,68813.0,0.12321966]
[1722219050453,0.13274564,68814.0,68813.0,0.12321966]
[1722219050662,0.13274564,68814.0,68813.0,0.12429519]
[1722219050876,0.13274564,68814.0,68813.0,0.12321966]
[1722219050877,0.15556582,68814.0,68813.0,0.12321966]
[1722219051136,0.15556582,68814.0,68813.0,0.12423804]
[1722219051563,0.15556582,68814.0,68813.0,0.12321966]
[1722219051769,0.23404878,68814.0,68813.0,0.12454548]
[1722219051975,0.30286345,68814.0,68813.0,0.12321966]
[1722219052211,0.23404443,68814.0,68813.0,0.12321966]
[1722219052419,0.23404443,68814.0,68813.0,0.12431113]
[1722219052820,0.23395609,68814.0,68813.0,0.12431113]
[1722219056048,0.08658517,68814.0,68813.0,0.12321966]
[1722219056324,0.23385411,68814.0,68813.0,0.12321966]
[1722219058323,0.23385411,68814.0,68813.0,0.35678261]
[1722219058540,0.23385411,68814.0,68813.0,0.35573366]
[1722219059018,0.22058413,68814.0,68813.0,0.81956051]
[1722219059231,0.05797095,68814.0,68813.0,1.21180453]
[1722219059459,0.05787469,68814.0,68813.0,1.22047071]
[1722219060374,0.05787469,68814.0,68813.0,1.45298471]
[1722219060627,0.01522145,68823.0,68822.0,0.191441]
[1722219060844,0.01522145,68823.0,68822.0,0.7786141]
[1722219061072,0.01522145,68823.0,68822.0,1.0110971]
[1722219061337,0.01522145,68823.0,68822.0,1.06704179]
[1722219061559,0.01522145,68823.0,68822.0,1.09004179]
[1722219062025,0.01522145,68823.0,68822.0,1.17777181]
[1722219062305,0.13090269,68827.0,68822.0,1.17777181]
[1722219062306,0.08722059,68825.0,68824.0,0.22003002]
[1722219062540,0.01126998,68843.0,68823.0,0.02763473]
[1722219062541,0.04360556,68831.0,68830.0,0.60164202]
[1722219062771,0.04360556,68833.0,68832.0,0.22003002]
[1722219063002,0.04360556,68834.0,68833.0,0.71210802]
[1722219063250,0.04360556,68842.0,68841.0,0.25293902]
[1722219063472,0.04360556,68844.0,68843.0,0.56864802]
[1722219063699,0.04444556,68845.0,68844.0,0.165204]
[1722219063936,0.04444556,68845.0,68844.0,0.862431]
[1722219064164,0.04444556,68845.0,68844.0,0.63691882]
[1722219064372,0.00084,68845.0,68844.0,0.67632592]
[1722219065867,0.00084,68845.0,68844.0,0.90873492]
[1722219066072,0.00084,68845.0,68844.0,0.93173492]
[1722219066245,0.00084,68845.0,68844.0,1.01946494]
[1722219066628,0.00084,68845.0,68844.0,1.39337394]
[1722219067639,0.02364715,68845.0,68844.0,1.39337394]
[1722219068218,0.00084,68845.0,68844.0,1.39337394]
[1722219068863,0.00084,68845.0,68844.0,1.54677394]
[1722219069356,1e-08,68861.0,68845.0,1.47735702]
[1722219069559,1e-08,68861.0,68860.0,0.424632]
[1722219069735,1e-08,68861.0,68860.0,0.507432]
[1722219069943,1e-08,68861.0,68860.0,0.74665202]
[1722219071307,1e-08,68861.0,68860.0,1.02800702]
[1722219071532,1e-08,68861.0,68860.0,1.08761602]
[1722219071748,0.01126999,68861.0,68860.0,0.49780602]
[1722219072662,0.01126999,68861.0,68860.0,0.00686502]
[1722219072876,0.01126999,68861.0,68860.0,0.0828]
[1722219073081,0.01126999,68861.0,68860.0,0.20584202]
[1722219073496,0.07636999,68861.0,68860.0,0.20584202]
[1722219073708,0.07636999,68861.0,68860.0,0.43819702]
[1722219073940,0.07636999,68861.0,68860.0,0.50525252]
[1722219074145,0.06510001,68861.0,68860.0,0.50525252]
[1722219074792,0.07636999,68861.0,68860.0,0.08966502]
[1722219075231,0.07636999,68861.0,68860.0,0.0828]
[1722219075437,0.07636999,68861.0,68860.0,0.08965673]
[1722219075870,0.09917497,68861.0,68860.0,0.08965673]
[1722219076743,0.10117497,68861.0,68860.0,0.08965673]
[1722219076946,0.09917497,68861.0,68860.0,0.09796608]
[1722219077916,0.68405497,68861.0,68860.0,0.00685673]
[1722219078135,0.117179,68859.0,68858.0,0.0828]
[1722219078358,0.13144898,68859.0,68858.0,0.0828]
[1722219078585,0.01326998,68859.0,68858.0,0.08966033]
[1722219078810,0.01326998,68859.0,68858.0,0.10955903]
[1722219079037,0.06510001,68861.0,68858.0,0.34192103]
[1722219079251,0.06510001,68861.0,68859.0,0.17389754]
[1722219079476,1e-08,68861.0,68859.0,0.17389754]
[1722219079700,1e-08,68861.0,68860.0,0.12303373]
[1722219080164,1e-08,68861.0,68860.0,0.43668873]
[1722219080816,0.01126999,68861.0,68860.0,0.43668873]
[1722219081029,0.01126999,68861.0,68860.0,0.48739044]
[1722219081245,0.02280485,68861.0,68860.0,0.71974544]
[1722219081461,1e-08,68861.0,68860.0,0.71974544]
[1722219081919,1e-08,68861.0,68860.0,0.76874544]
[1722219082348,1e-08,68861.0,68860.0,0.99907339]
[1722219082577,1e-08,68861.0,68860.0,1.02207339]
[1722219083027,1e-08,68861.0,68860.0,0.40406339]
[1722219083706,1e-08,68861.0,68860.0,0.63641839]
[1722219084810,0.02280449,68861.0,68860.0,0.63641839]
[1722219085476,0.02280449,68861.0,68860.0,0.58571668]
[1722219086308,0.02280449,68861.0,68860.0,0.35336168]
[1722219086719,0.02280449,68861.0,68860.0,0.58571668]
[1722219086928,0.02280449,68861.0,68860.0,0.35336168]
[1722219088615,0.02280449,68861.0,68860.0,0.36179801]
[1722219088616,0.03802086,68861.0,68860.0,0.36179801]
[1722219089323,0.03802086,68861.0,68860.0,0.59415301]
[1722219089540,0.03802086,68861.0,68860.0,0.44402428]
[1722219090305,0.03802086,68861.0,68860.0,0.67637928]
[1722219090496,0.04929084,68861.0,68860.0,0.44402428]
[1722219090699,0.03802086,68861.0,68860.0,0.36179801]
[1722219091078,0.03802086,68861.0,68860.0,0.59415301]
[1722219091880,0.03802086,68861.0,68860.0,0.36179801]
[1722219092106,0.03802086,68861.0,68860.0,0.64315301]
[1722219092283,0.07117123,68861.0,68860.0,0.64315301]
[1722219093280,0.04836675,68861.0,68860.0,0.64315301]
[1722219093543,0.05963673,68861.0,68860.0,0.41079801]
[1722219093774,0.05966403,68861.0,68860.0,0.41079801]
[1722219093959,0.05966403,68861.0,68860.0,0.01529306]
[1722219093960,0.12026403,68861.0,68860.0,0.01529306]
[1722219094107,0.12026403,68861.0,68860.0,0.09809306]
[1722219094108,0.12226403,68861.0,68860.0,0.09809306]
[1722219094537,0.12226403,68861.0,68860.0,0.01529306]
[1722219094771,0.23844003,68861.0,68860.0,0.01529306]
[1722219094941,0.47279203,68861.0,68860.0,0.00843633]
[1722219095139,0.47279203,68861.0,68851.0,0.232382]
[1722219095140,0.116182,68858.0,68851.0,0.232382]
[1722219095341,0.04444765,68857.0,68853.0,0.232379]
[1722219095596,0.03317767,68856.0,68855.0,0.165186]
[1722219095809,0.03305293,68856.0,68855.0,0.281372]
[1722219095964,0.03305309,68858.0,68855.0,0.32635116]
[1722219096143,0.04432307,68858.0,68857.0,0.198982]
[1722219096378,0.04432307,68858.0,68857.0,0.43820504]
[1722219096575,0.06712856,68858.0,68857.0,0.43820504]
[1722219096821,0.06738698,68858.0,68857.0,0.43820504]
[1722219097656,0.04458149,68858.0,68857.0,0.43820504]
[1722219098749,0.04458149,68858.0,68857.0,0.456239]
[1722219099430,0.03331151,68858.0,68857.0,0.456239]
[1722219099651,0.03336479,68860.0,68858.0,0.116181]
[1722219099879,0.07781638,68861.0,68859.0,0.08965444]
[1722219100086,0.12744698,68860.0,68859.0,0.08965444]
[1722219100324,0.15154203,68860.0,68859.0,0.08965444]
[1722219100590,0.15154092,68860.0,68859.0,0.08965444]
[1722219100852,0.17434662,68860.0,68859.0,0.08965444]
[1722219101101,0.40670162,68860.0,68859.0,0.08965444]
[1722219101342,0.1876166,68860.0,68859.0,0.08965444]
[1722219102069,0.6523266,68860.0,68859.0,0.08965444]
[1722219102314,0.6523266,68860.0,68859.0,0.0828]
[1722219102768,0.4199716,68860.0,68859.0,0.0828]
[1722219103004,0.40870162,68860.0,68859.0,0.0828]
[1722219103258,0.47349687,68860.0,68859.0,0.0828]
[1722219103496,0.48476685,68860.0,68859.0,0.0828]
[1722219104199,0.60439692,68860.0,68859.0,0.0828]
[1722219104659,0.59312694,68860.0,68859.0,0.0828]
[1722219105286,0.48455177,68860.0,68859.0,0.0828]
[1722219105663,0.49582175,68860.0,68859.0,0.0828]
[1722219106126,0.49582175,68860.0,68859.0,0.09147989]
[1722219106505,0.78954675,68860.0,68859.0,0.09147989]
[1722219106705,0.77827677,68860.0,68859.0,0.00867989]
[1722219106919,0.349547,68857.0,68856.0,0.0828]
[1722219107119,0.45820105,68857.0,68856.0,0.08965984]
[1722219107592,0.58849125,68857.0,68856.0,0.08965984]
[1722219108220,0.45820105,68857.0,68856.0,0.08965984]
[1722219109749,0.69075167,68857.0,68856.0,0.00685984]
[1722219110166,0.01326998,68853.0,68852.0,0.08344038]
[1722219110370,0.04463967,68853.0,68852.0,0.17310785]
[1722219110710,0.04463967,68853.0,68852.0,0.93683186]
[1722219110711,0.03336969,68853.0,68852.0,0.93683186]
[1722219110910,0.13085757,68856.0,68855.0,0.281372]
[1722219111118,0.0333796,68856.0,68855.0,0.79629281]
[1722219111317,0.13085757,68859.0,68858.0,0.116181]
[1722219111716,0.16423206,68859.0,68858.0,0.71248979]
[1722219111916,0.17944866,68859.0,68858.0,0.71248979]
[1722219112362,0.04830427,68859.0,68858.0,0.48012779]
[1722219112472,0.04830427,68859.0,68858.0,0.71248979]
[1722219112883,0.04844073,68859.0,68858.0,0.71248979]
[1722219113105,0.04844073,68859.0,68858.0,0.48012779]
[1722219113503,0.04844073,68859.0,68858.0,0.71248979]
[1722219113905,0.04844073,68859.0,68858.0,1.09085179]
[1722219114124,0.19628688,68859.0,68858.0,1.25058181]
[1722219114333,0.08717694,68860.0,68859.0,0.94998302]
[1722219114528,1e-08,68861.0,68860.0,0.59156202]
[1722219114729,1e-08,68861.0,68860.0,0.89904681]
[1722219114930,1e-08,68861.0,68860.0,1.03519581]
[1722219115131,0.06540901,68861.0,68860.0,1.03519581]
[1722219115385,1e-08,68861.0,68860.0,1.03519581]
[1722219115624,1e-08,68861.0,68860.0,1.07712319]
[1722219115842,0.06540701,68861.0,68860.0,1.07712319]
[1722219116096,1e-08,68861.0,68860.0,0.71246819]
[1722219119205,0.02280374,68861.0,68860.0,0.71246819]
[1722219120429,0.02280374,68861.0,68860.0,0.72099187]
[1722219120840,0.01126999,68861.0,68860.0,0.72099187]
[1722219121044,1e-08,68861.0,68860.0,0.72099187]
[1722219122333,0.08717601,68861.0,68860.0,0.72099187]
[1722219123174,1e-08,68861.0,68860.0,0.72099187]
[1722219123394,0.08717096,68861.0,68860.0,0.72099187]
[1722219123832,0.08717096,68861.0,68860.0,0.95334687]
[1722219124034,0.08717096,68861.0,68860.0,0.72099187]
[1722219124257,0.0295622,68861.0,68860.0,0.67906449]
[1722219124563,1e-08,68861.0,68860.0,0.67906449]
[1722219125435,1e-08,68861.0,68860.0,0.44670949]
[1722219125436,0.06620001,68861.0,68860.0,0.44670949]
[1722219125638,0.10503207,68861.0,68860.0,0.44670949]
[1722219126013,0.10503207,68861.0,68860.0,0.67906449]
[1722219126622,0.09376209,68861.0,68860.0,0.77519944]
[1722219127422,0.10503207,68861.0,68860.0,0.77519944]
[1722219127832,0.10503207,68861.0,68860.0,0.67906449]
[1722219127833,0.105268,68861.0,68860.0,0.67906449]
[1722219128044,0.17339802,68861.0,68860.0,0.21435449]
[1722219128276,0.17339802,68861.0,68860.0,0.44670949]
[1722219128692,0.19620265,68861.0,68860.0,0.44670949]
[1722219128917,0.17339802,68861.0,68860.0,0.44670949]
[1722219130745,0.09399802,68861.0,68860.0,0.44670949]
[1722219130959,0.06420001,68861.0,68860.0,0.44670949]
[1722219131158,0.09411751,68861.0,68860.0,0.44670949]
[1722219131577,0.10738749,68861.0,68860.0,0.44670949]
[1722219131778,0.10738749,68861.0,68860.0,0.09817749]
[1722219131779,0.10938749,68861.0,68860.0,0.09817749]
[1722219132239,0.12092251,68861.0,68860.0,0.09817749]
[1722219132398,0.11892251,68861.0,68860.0,0.09817749]
[1722219132758,0.13219249,68861.0,68860.0,0.09817749]
[1722219133166,0.10938749,68861.0,68860.0,0.09817749]
[1722219133586,0.10950432,68861.0,68860.0,0.09817749]
[1722219134187,0.10954277,68861.0,68860.0,0.09817749]
[1722219135363,0.09627279,68861.0,68860.0,0.09817749]
[1722219135575,0.09627279,68861.0,68860.0,0.66789329]
[1722219135576,0.04334277,68861.0,68860.0,0.66789329]
[1722219135985,0.04334277,68861.0,68860.0,0.43553829]
[1722219136192,0.04334277,68861.0,68860.0,0.2825085]
[1722219136625,0.04334277,68861.0,68860.0,0.21435449]
[1722219137792,0.06614778,68861.0,68860.0,0.21435449]
[1722219138569,0.0548778,68861.0,68860.0,0.21435449]
[1722219138814,0.06814778,68861.0,68860.0,0.21435449]
[1722219139205,0.0548778,68861.0,68860.0,0.21435449]
[1722219140087,0.06614778,68861.0,68860.0,0.21435449]
[1722219140717,0.036075,68861.0,68860.0,0.21435449]
[1722219140936,0.06612016,68861.0,68860.0,0.21435449]
[1722219141352,0.06611964,68861.0,68860.0,0.21435449]
[1722219141756,0.05484966,68861.0,68860.0,0.21435449]
[1722219142739,0.06611964,68861.0,68860.0,0.21435449]
[1722219143121,0.036075,68861.0,68860.0,0.21435449]
[1722219143325,0.06610014,68861.0,68860.0,0.21435449]
[1722219143732,0.05483016,68861.0,68860.0,0.21435449]
[1722219143939,0.02480502,68861.0,68860.0,0.21435449]
[1722219144139,0.05483173,68861.0,68860.0,0.21435449]
[1722219144831,0.06810171,68861.0,68860.0,0.21435449]
[1722219146338,0.05483173,68861.0,68860.0,0.21435449]
[1722219146466,0.05683173,68861.0,68860.0,0.21435449]
[1722219146872,0.06810171,68861.0,68860.0,0.21435449]
[1722219147075,0.02680502,68861.0,68860.0,0.21435449]
[1722219147275,0.038075,68861.0,68860.0,0.21435449]
[1722219147549,0.06792186,68861.0,68860.0,0.21435449]
[1722219148947,0.05465188,68861.0,68860.0,0.21435449]
[1722219149723,0.06792186,68861.0,68860.0,0.21435449]
[1722219150621,0.05469611,68861.0,68860.0,0.21435449]
[1722219150851,0.06596609,68861.0,68860.0,0.21435449]
[1722219151049,0.06396552,68861.0,68860.0,0.52810949]
[1722219151227,0.06396552,68861.0,68860.0,0.62764126]
[1722219151626,0.05269554,68861.0,68860.0,0.85999626]
[1722219152272,0.05269554,68861.0,68860.0,0.92399626]
[1722219152978,0.02280502,68861.0,68860.0,0.92399626]
[1722219153308,1e-08,68861.0,68860.0,0.92399626]
[1722219154759,0.01126999,68861.0,68860.0,0.85999626]
[1722219154971,0.04138366,68861.0,68860.0,0.85999626]
[1722219155202,0.04138366,68861.0,68860.0,0.76046449]
[1722219155378,0.11028366,68861.0,68860.0,0.44670949]
[1722219155617,0.10828366,68861.0,68860.0,0.44763349]
[1722219156248,0.09701368,68861.0,68860.0,0.44763349]
[1722219156451,0.04138366,68861.0,68860.0,0.82728034]
[1722219156855,0.01126999,68861.0,68860.0,0.82728034]
[1722219157263,0.0414831,68861.0,68860.0,0.82728034]
[1722219158019,0.06428794,68861.0,68860.0,0.82728034]
[1722219158197,0.0414831,68861.0,68860.0,0.82728034]
[1722219160190,0.04155969,68861.0,68860.0,0.82728034]
[1722219160601,0.04155969,68861.0,68860.0,0.75918849]
[1722219160602,0.01126999,68861.0,68860.0,0.75918849]
[1722219160805,0.06428275,68861.0,68860.0,0.75918849]
[1722219162240,0.05301277,68861.0,68860.0,0.75918849]
[1722219162413,0.06428275,68861.0,68860.0,0.75918849]
[1722219163184,0.05301277,68861.0,68860.0,0.75918849]
[1722219163383,0.0530965,68861.0,68860.0,0.87084962]
[1722219163808,0.03029166,68861.0,68860.0,0.87084962]
[1722219164854,1e-08,68861.0,68860.0,0.87084962]
[1722219165076,1e-08,68861.0,68860.0,1.21450462]
[1722219165077,0.13090923,68861.0,68860.0,1.21450462]
[1722219165317,0.03029166,68861.0,68860.0,1.30223464]
[1722219165530,1e-08,68861.0,68860.0,1.21450462]
[1722219165752,1e-08,68861.0,68860.0,1.30223464]
[1722219166410,1e-08,68861.0,68860.0,1.32523464]
[1722219166621,0.13089748,68865.0,68864.0,0.862197]
[1722219166832,0.03100147,68865.0,68864.0,1.09484173]
[1722219167048,0.00819,68868.0,68867.0,0.36906102]
[1722219167268,0.09542917,68871.0,68870.0,0.13673002]
[1722219167481,0.00819,68871.0,68870.0,1.11505302]
[1722219167700,0.00819,68871.0,68870.0,1.43990537]
[1722219167942,0.00819,68871.0,68870.0,1.50339592]
[1722219167943,0.05178387,68871.0,68870.0,1.50339592]
[1722219168373,0.00819,68871.0,68870.0,1.50339592]
[1722219170151,0.00819,68871.0,68870.0,1.42059592]
[1722219170569,0.00819,68871.0,68870.0,1.4156659]
[1722219170966,0.03098903,68871.0,68870.0,1.4156659]
[1722219171172,0.03098903,68871.0,68870.0,1.50339592]
[1722219171430,0.00819,68871.0,68870.0,1.8013869]
[1722219171650,0.002,68879.0,68878.0,0.28133002]
[1722219171865,0.002,68879.0,68878.0,0.98915857]
[1722219172071,0.00819,68884.0,68883.0,0.80022202]
[1722219172293,0.00819,68884.0,68883.0,1.17709902]
[1722219172512,0.00819,68884.0,68883.0,1.43917991]
[1722219173356,0.00819,68884.0,68883.0,1.42204989]
[1722219173561,0.00819,68884.0,68883.0,1.64075049]
[1722219174425,0.03098454,68884.0,68883.0,1.64075049]
[1722219175698,0.00819,68884.0,68883.0,1.64075049]
[1722219175915,0.002,68899.0,68888.0,0.861913]
[1722219176126,0.002,68899.0,68898.0,0.39734]
[1722219176359,0.002,68899.0,68898.0,1.52165102]
[1722219176568,0.002,68899.0,68898.0,1.52842505]
[1722219178308,0.002,68899.0,68898.0,1.05506803]
[1722219178514,0.002,68899.0,68898.0,1.14279805]
[1722219178723,0.002,68899.0,68898.0,1.1870916]
[1722219178942,0.02478989,68899.0,68898.0,1.1870916]
[1722219180203,0.002,68899.0,68898.0,1.1870916]
[1722219182136,0.002,68899.0,68898.0,1.5724186]
[1722219182354,0.002,68899.0,68898.0,1.6724186]
[1722219182787,0.002,68909.0,68898.0,1.6724186]
[1722219182788,0.002,68909.0,68908.0,0.629482]
[1722219182996,0.002,68909.0,68908.0,0.78345258]
[1722219183220,0.002,68909.0,68908.0,0.79019478]
[1722219183422,0.02478774,68909.0,68908.0,0.79019478]
[1722219184046,0.02478774,68909.0,68908.0,1.02238778]
[1722219184509,0.002,68909.0,68908.0,1.02238778]
[1722219187627,0.02478749,68909.0,68908.0,1.02238778]
[1722219188556,0.03999454,68909.0,68908.0,1.02238778]
[1722219189001,0.01720705,68909.0,68908.0,1.02238778]
[1722219189463,0.01720705,68909.0,68908.0,0.93958778]
[1722219189685,0.01720705,68909.0,68908.0,1.02238778]
[1722219190379,0.01720705,68909.0,68908.0,0.93958778]
[1722219190623,0.01720705,68909.0,68908.0,1.02238778]
[1722219192246,0.0399947,68909.0,68908.0,1.02238778]
[1722219192458,0.01720705,68909.0,68908.0,1.02238778]
[1722219193795,0.01720705,68909.0,68908.0,1.03095055]
[1722219195838,0.03999474,68909.0,68908.0,1.03095055]
[1722219196946,0.18359474,68909.0,68908.0,0.59578697]
[1722219197159,0.18359474,68909.0,68908.0,0.44639397]
[1722219197831,0.18359474,68909.0,68908.0,0.67858697]
[1722219198093,0.18359474,68909.0,68908.0,0.44639397]
[1722219199004,0.16080705,68909.0,68908.0,0.44639397]
[1722219199236,0.16080705,68909.0,68908.0,0.54237337]
[1722219200308,0.16080705,68909.0,68908.0,0.77456637]
[1722219200514,0.08150705,68909.0,68908.0,0.77456637]
[1722219200722,0.08150705,68909.0,68908.0,0.89926637]
[1722219200723,0.01720705,68909.0,68908.0,0.89926637]
[1722219202473,0.01720705,68909.0,68908.0,1.05575937]
[1722219202682,0.01720705,68909.0,68908.0,0.82356637]
[1722219202886,0.01720705,68909.0,68908.0,1.07875937]
[1722219203100,0.01720705,68909.0,68908.0,1.30878939]
[1722219203315,0.00598403,68912.0,68911.0,0.94937002]
[1722219203528,0.00598403,68912.0,68911.0,1.15015175]
[1722219203776,0.00598403,68912.0,68911.0,1.15688667]
[1722219204201,0.00598403,68912.0,68911.0,1.30998667]
[1722219204412,0.00598403,68912.0,68911.0,1.60806967]
[1722219204631,0.0011968,68928.0,68927.0,0.049]
[1722219204836,0.0011968,68928.0,68927.0,1.05325701]
[1722219205047,0.0011968,68928.0,68927.0,1.14923641]
[1722219206349,0.02397783,68928.0,68927.0,1.14923641]
[1722219210627,0.0011968,68928.0,68927.0,1.14923641]
[1722219211431,0.0011968,68928.0,68927.0,1.13823641]
[1722219211872,0.0011968,68928.0,68927.0,1.06748524]
[1722219212101,0.0021968,68928.0,68927.0,1.08048524]
[1722219212711,0.0674968,68928.0,68927.0,1.08048524]
[1722219212913,0.0674968,68928.0,68927.0,1.07248524]
[1722219213596,0.0674968,68928.0,68927.0,0.81035624]
[1722219213816,0.07976678,68928.0,68927.0,0.56922724]
[1722219214060,0.09127868,68928.0,68927.0,0.80135624]
[1722219214245,0.02597868,68928.0,68927.0,1.08648524]
[1722219214447,0.0031968,68928.0,68927.0,1.08648524]
[1722219215413,0.0031968,68928.0,68927.0,1.55371424]
[1722219215637,0.01018,68929.0,68928.0,1.08327102]
[1722219215846,0.01018,68929.0,68928.0,1.43589976]
[1722219215988,0.01018,68929.0,68928.0,1.51789976]
[1722219216344,0.01018,68929.0,68928.0,1.61789976]
[1722219216878,0.01018,68929.0,68928.0,1.61893085]
[1722219217080,0.01018,68929.0,68928.0,1.61789976]
[1722219217300,0.01018,68929.0,68928.0,1.82439976]
[1722219217699,0.03295917,68929.0,68928.0,1.83965953]
[1722219217922,0.03295917,68929.0,68928.0,1.83839976]
[1722219218571,0.01018,68929.0,68928.0,1.83839976]
[1722219218779,0.01018,68929.0,68928.0,2.36655176]
[1722219219040,0.00818,68940.0,68938.0,1.66884402]
[1722219219267,0.00818,68953.0,68948.0,1.201803]
[1722219219469,0.00818,68953.0,68948.0,1.048703]
[1722219219709,0.00818,68953.0,68948.0,1.17433455]
[1722219220631,0.00818,68953.0,68948.0,1.18833455]
[1722219223415,0.00284,68949.0,68948.0,1.18833455]
[1722219224355,0.00284,68949.0,68948.0,1.21072462]
[1722219224559,0.06794,68949.0,68948.0,0.92566662]
[1722219224998,0.06794,68949.0,68948.0,0.48710862]
[1722219225199,0.14694,68949.0,68948.0,0.39112922]
[1722219225307,0.14694,68949.0,68948.0,0.62318722]
[1722219225727,0.18098483,68949.0,68948.0,0.39112922]
[1722219226138,0.16971485,68949.0,68948.0,0.39112922]
[1722219226332,0.14694,68949.0,68948.0,0.39112922]
[1722219226576,0.15820998,68949.0,68948.0,0.62318722]
[1722219226822,0.15820998,68949.0,68948.0,0.39112922]
[1722219227033,0.14694,68949.0,68948.0,0.39112922]
[1722219227449,0.00284,68949.0,68948.0,0.81384293]
[1722219227658,0.00284,68949.0,68948.0,1.04334293]
[1722219227837,0.00284,68949.0,68948.0,1.27540093]
[1722219228242,0.00284,68949.0,68948.0,1.35750093]
[1722219228715,0.00284,68949.0,68948.0,1.99558895]
[1722219228926,0.00818,68953.0,68952.0,1.16508702]
[1722219229135,0.00818,68953.0,68952.0,1.35853721]
[1722219229381,0.00818,68953.0,68952.0,1.12997442]
[1722219229598,0.03095212,68953.0,68952.0,0.89792942]
[1722219230021,0.03095212,68953.0,68952.0,0.98565944]
[1722219230433,0.03095212,68953.0,68952.0,1.13875944]
[1722219230678,0.00818,68953.0,68952.0,1.19862942]
[1722219231080,0.00818,68953.0,68952.0,1.13252942]
[1722219231516,0.00818,68953.0,68952.0,1.22025944]
[1722219231723,0.00818,68953.0,68952.0,1.13252942]
[1722219231948,0.00818,68953.0,68952.0,1.14652942]
[1722219232152,0.00818,68953.0,68952.0,0.99342942]
[1722219232387,0.00818,68953.0,68952.0,0.97942942]
[1722219232828,0.00818,68953.0,68952.0,0.99342942]
[1722219233511,0.00818,68953.0,68952.0,0.91192942]
[1722219234218,0.03095212,68953.0,68952.0,0.91192942]
[1722219235188,0.00818,68953.0,68952.0,0.91192942]
[1722219235882,0.00818,68953.0,68952.0,0.92592942]
[1722219236531,0.00818,68953.0,68952.0,0.91192942]
[1722219236971,0.00818,68953.0,68952.0,0.92592942]
[1722219237421,0.00818,68953.0,68952.0,0.91192942]
[1722219237870,0.00818,68953.0,68952.0,0.92592942]
[1722219238528,0.0309522,68953.0,68952.0,1.45367442]
[1722219238743,0.00818,68953.0,68952.0,1.54140444]
[1722219239357,0.002,68959.0,68958.0,0.842087]
[1722219239586,0.002,68959.0,68958.0,0.96198055]
[1722219239793,0.002,68959.0,68958.0,0.96860699]